bitfinex-derivatives/quotes_BTCF0:USTF0_20241208
["timestamp","ask_amount","ask_price","bid_price","bid_amount"]
[1733631782310,0.048021,99863.0,99862.0,0.00813657]
[1733631782507,0.048021,99863.0,99862.0,0.18766704]
[1733631783425,0.048021,99863.0,99862.0,0.00813657]
[1733631784915,0.048021,99863.0,99862.0,0.04315857]
[1733631785110,0.013,99863.0,99862.0,0.22270375]
[1733631785310,0.0200062,99873.0,99870.0,0.035019]
[1733631785615,0.035018,99872.0,99871.0,0.00813657]
[1733631785815,0.035018,99872.0,99871.0,0.04315457]
[1733631786116,0.01001241,99880.0,99877.0,0.035016]
[1733631786117,0.035016,99878.0,99877.0,0.035016]
[1733631786318,0.035016,99878.0,99877.0,0.04315257]
[1733631786721,0.00010228,99880.0,99879.0,0.035016]
[1733631787016,0.00010228,99880.0,99879.0,0.04315257]
[1733631787813,0.00010228,99880.0,99879.0,0.00813657]
[1733631788814,0.00010228,99880.0,99879.0,0.00312945]
[1733631789113,0.04111728,99880.0,99879.0,0.00412945]
[1733631789322,0.04511728,99880.0,99879.0,0.00412945]
[1733631790021,0.04211728,99880.0,99879.0,0.00412945]
[1733631790221,0.04611728,99880.0,99879.0,0.00913534]
[1733631790410,0.04611728,99880.0,99879.0,0.10655134]
[1733631790835,0.01110228,99880.0,99879.0,0.10655134]
[1733631792229,0.00410228,99880.0,99879.0,0.10555134]
[1733631792533,0.00710228,99880.0,99879.0,0.10655134]
[1733631792732,0.01110228,99880.0,99879.0,0.46735134]
[1733631792922,0.01210228,99880.0,99879.0,0.46735134]
[1733631793418,0.00410228,99880.0,99879.0,0.46635134]
[1733631793629,0.01110228,99880.0,99879.0,0.46735134]
[1733631794426,0.00710228,99880.0,99879.0,0.46735134]
[1733631795235,0.00010228,99880.0,99879.0,0.46634946]
[1733631795428,0.00110228,99880.0,99879.0,0.46634946]
[1733631796327,0.00010228,99880.0,99879.0,0.46734946]
[1733631796532,0.00110228,99880.0,99879.0,0.46734946]
[1733631796928,0.00110228,99880.0,99879.0,0.47034946]
[1733631797326,0.00010228,99880.0,99879.0,0.40994946]
[1733631799028,0.00010228,99880.0,99879.0,0.40594946]
[1733631799623,0.00110228,99880.0,99879.0,0.40494946]
[1733631799824,0.00210228,99880.0,99879.0,0.40394946]
[1733631802034,0.00210228,99880.0,99879.0,0.40394922]
[1733631802226,0.03501,99896.0,99879.0,0.40394922]
[1733631802227,0.01,99897.0,99895.0,0.03501]
[1733631802428,0.3608,99903.0,99879.0,0.36893322]
[1733631802429,0.08931865,99903.0,99896.0,0.00312816]
[1733631802624,0.08931865,99904.0,99903.0,0.035007]
[1733631802838,0.035006,99906.0,99904.0,0.035007]
[1733631803032,0.12436896,99906.0,99905.0,0.00312789]
[1733631803224,0.035006,99906.0,99905.0,0.00312789]
[1733631803926,0.00011059,99910.0,99908.0,0.035005]
[1733631804434,0.00011059,99910.0,99909.0,0.0031276]
[1733631805031,0.00011059,99910.0,99909.0,0.00813129]
[1733631806341,0.01511059,99910.0,99909.0,0.01013129]
[1733631806830,0.01311059,99910.0,99909.0,0.01013129]
[1733631808133,0.01111059,99910.0,99909.0,0.00913129]
[1733631811142,0.00611059,99910.0,99909.0,0.00813129]
[1733631812041,0.00311059,99910.0,99909.0,0.00813129]
[1733631812539,0.00311059,99910.0,99909.0,0.04313629]
[1733631812736,0.00211059,99910.0,99909.0,0.04313629]
[1733631812932,0.00311059,99910.0,99909.0,0.04313629]
[1733631813535,0.00411059,99910.0,99909.0,0.04313629]
[1733631815539,0.00411059,99910.0,99909.0,0.04000869]
[1733631815744,0.00411059,99910.0,99909.0,0.04313586]
[1733631816250,0.03911559,99910.0,99909.0,0.00312725]
[1733631816436,0.03911559,99910.0,99906.0,0.045006]
[1733631816437,0.035006,99907.0,99906.0,0.045006]
[1733631816742,0.395806,99907.0,99906.0,0.045006]
[1733631816945,0.08935721,99908.0,99907.0,0.035006]
[1733631817143,0.0316,99909.0,99908.0,0.035005]
[1733631817646,0.04111559,99910.0,99909.0,0.035005]
[1733631817853,0.03611559,99910.0,99909.0,0.035005]
[1733631818034,0.03611559,99910.0,99909.0,0.03813273]
[1733631818343,0.03511559,99910.0,99909.0,0.03813273]
[1733631818939,0.03511559,99910.0,99909.0,0.00312773]
[1733631819339,0.03911559,99910.0,99909.0,0.00312773]
[1733631819940,0.04611559,99910.0,99909.0,0.00412773]
[1733631820342,0.04611559,99910.0,99909.0,0.00913211]
[1733631820854,0.04811559,99910.0,99909.0,0.00913211]
[1733631821049,0.01311059,99910.0,99909.0,0.03913273]
[1733631821347,0.01311059,99910.0,99909.0,0.04413712]
[1733631821545,0.00411059,99910.0,99909.0,0.04313712]
[1733631821744,0.01111059,99910.0,99909.0,0.04413712]
[1733631823547,0.00411059,99910.0,99909.0,0.04313712]
[1733631823749,0.01311059,99910.0,99909.0,0.04413712]
[1733631824244,0.01311059,99910.0,99909.0,0.0578926]
[1733631824245,0.00711059,99910.0,99909.0,0.0578926]
[1733631824553,0.00511059,99910.0,99909.0,0.0578926]
[1733631824744,0.00211059,99910.0,99909.0,0.0578926]
[1733631825043,0.00411059,99910.0,99909.0,0.05789128]
[1733631825251,0.00211059,99910.0,99909.0,0.05789128]
[1733631825442,0.00311059,99910.0,99909.0,0.05789128]
[1733631826041,0.00211059,99910.0,99909.0,0.05789128]
[1733631826238,0.00311059,99910.0,99909.0,0.05789128]
[1733631826440,0.00111059,99910.0,99909.0,0.05790059]
[1733631826660,0.00211059,99910.0,99909.0,0.0431358]
[1733631826949,0.00211059,99910.0,99909.0,0.05790937]
[1733631827142,0.035001,99920.0,99919.0,0.035002]
[1733631827347,0.035001,99920.0,99919.0,0.0431328]
[1733631828049,0.03513038,99920.0,99919.0,0.0431328]
[1733631828460,0.04213038,99920.0,99919.0,0.0441328]
[1733631828751,0.04213038,99920.0,99919.0,0.036002]
[1733631829050,0.04213038,99920.0,99919.0,0.04413309]
[1733631829351,0.04213038,99920.0,99916.0,0.18949419]
[1733631829352,0.035002,99917.0,99916.0,0.00077506]
[1733631829551,0.035003,99915.0,99914.0,0.005]
[1733631829740,0.035005,99910.0,99909.0,0.005]
[1733631830049,0.035005,99910.0,99900.0,0.1896745]
[1733631830050,0.035005,99909.0,99908.0,0.005]
[1733631830255,0.035005,99908.0,99907.0,0.005]
[1733631830552,0.035008,99901.0,99900.0,0.1796745]
[1733631830868,0.035008,99901.0,99900.0,7.864e-05]
[1733631831152,0.395808,99901.0,99900.0,7.864e-05]
[1733631831746,0.395808,99901.0,99900.0,0.00107864]
[1733631831941,0.3608,99901.0,99890.0,0.01]
[1733631832156,0.3608,99901.0,99889.0,0.00150152]
[1733631832157,0.035012,99890.0,99889.0,0.00150152]
[1733631832355,0.12456226,99890.0,99889.0,0.00150152]
[1733631832656,0.067112,99890.0,99889.0,0.00150152]
[1733631833450,0.067112,99890.0,99889.0,0.00250152]
[1733631835042,0.067112,99890.0,99889.0,0.00350152]
[1733631835248,0.100112,99890.0,99889.0,0.00350152]
[1733631835747,0.100112,99890.0,99889.0,0.002]
[1733631836747,0.100112,99890.0,99880.0,0.00012838]
[1733631836949,0.395815,99881.0,99880.0,0.00012838]
[1733631837849,0.428215,99881.0,99880.0,0.00312838]
[1733631838251,0.428215,99881.0,99880.0,0.00812838]
[1733631839157,0.51757756,99881.0,99880.0,0.00812838]
[1733631839343,0.51747208,99881.0,99880.0,0.00812838]
[1733631839744,0.428215,99881.0,99880.0,3.8e-07]
[1733631840052,0.428215,99881.0,99866.0,0.01]
[1733631840244,0.035022,99860.0,99859.0,0.01]
[1733631840445,0.035027,99848.0,99847.0,0.0935]
[1733631841350,0.035027,99848.0,99847.0,0.03512943]
[1733631841855,0.036027,99848.0,99847.0,0.04412943]
[1733631842549,0.036027,99848.0,99847.0,0.04913657]
[1733631842751,0.036027,99848.0,99847.0,0.009]
[1733631843161,0.035031,99834.0,99809.0,0.03504]
[1733631843358,0.035035,99825.0,99820.0,0.01]
[1733631843547,0.035035,99825.0,99812.0,0.0304]
[1733631843548,0.035035,99825.0,99824.0,0.0031303]
[1733631844058,0.035035,99825.0,99815.0,0.01]
[1733631844657,0.04501306,99825.0,99815.0,0.01]
[1733631844857,0.036035,99825.0,99815.0,0.01]
[1733631845955,0.036035,99825.0,99815.0,0.3708]
[1733631845956,0.035038,99816.0,99815.0,0.3708]
[1733631846154,0.035038,99816.0,99815.0,0.36393042]
[1733631847165,0.036038,99816.0,99815.0,0.36393042]
[1733631847957,0.037038,99816.0,99815.0,0.3608]
[1733631848154,0.002,99816.0,99815.0,0.36393044]
[1733631848359,0.01,99823.0,99822.0,0.035036]
[1733631848563,0.01,99831.0,99829.0,0.035033]
[1733631848564,0.01,99830.0,99829.0,0.035033]
[1733631848765,0.035032,99833.0,99831.0,0.035032]
[1733631848959,0.035032,99833.0,99832.0,0.0492]
[1733631849361,0.035032,99833.0,99832.0,0.05233008]
[1733631849662,0.035032,99833.0,99832.0,0.00313008]
[1733631850562,0.3608,99834.0,99829.0,0.035033]
[1733631850867,0.035033,99830.0,99829.0,0.035033]
[1733631851068,0.035033,99830.0,99829.0,0.03816314]
[1733631851965,0.035029,99841.0,99840.0,0.035029]
[1733631852166,0.035027,99847.0,99846.0,0.035027]
[1733631852365,0.035027,99847.0,99846.0,0.025027]
[1733631853961,0.035027,99847.0,99846.0,0.02815675]
[1733631854161,0.041027,99847.0,99846.0,0.02815675]
[1733631854368,0.044027,99847.0,99846.0,0.02815675]
[1733631857472,0.044027,99847.0,99846.0,0.03316433]
[1733631858768,0.009,99847.0,99846.0,0.03316433]
[1733631862370,0.009,99847.0,99846.0,0.06456433]
[1733631863569,0.009,99847.0,99846.0,0.30388991]
[1733631863869,0.009,99847.0,99846.0,0.06456433]
[1733631864273,0.009,99847.0,99846.0,0.69636291]
[1733631864464,0.009,99847.0,99846.0,0.39741285]
[1733631864661,0.009,99847.0,99846.0,0.38927552]
[1733631864865,0.009,99847.0,99846.0,0.39741134]
[1733631865069,0.009,99847.0,99846.0,0.39240468]
[1733631865273,0.00010172,99850.0,99846.0,0.39240468]
[1733631865274,0.00010172,99850.0,99846.0,0.44544998]
[1733631865476,0.14931948,99896.0,99856.0,0.035023]
[1733631865477,0.3608,99885.0,99856.0,0.035023]
[1733631865666,0.01,99877.0,99876.0,0.035017]
[1733631865870,0.3608,99885.0,99884.0,0.035014]
[1733631865871,0.37093846,99885.0,99884.0,0.035014]
[1733631866076,0.01013846,99885.0,99884.0,0.04314982]
[1733631866290,0.01,99901.0,99884.0,0.00813582]
[1733631866291,0.3608,99893.0,99884.0,0.00813582]
[1733631866571,0.03508366,99890.0,99889.0,0.035012]
[1733631866776,0.03508366,99890.0,99889.0,0.04314782]
[1733631867779,0.03908366,99890.0,99889.0,0.04314782]
[1733631868169,0.04808366,99890.0,99889.0,0.04314782]
[1733631871079,0.01307166,99890.0,99889.0,0.04314782]
[1733631873280,0.00407166,99890.0,99889.0,0.04314782]
[1733631873582,0.01307166,99890.0,99889.0,0.04314782]
[1733631873780,0.00907166,99890.0,99889.0,0.04314782]
[1733631873982,0.01307166,99890.0,99889.0,0.04314782]
[1733631874785,0.01307166,99890.0,99889.0,0.04314507]
[1733631875484,0.01307166,99890.0,99889.0,0.0381401]
[1733631877484,0.01307166,99890.0,99889.0,0.04314505]
[1733631877987,0.01307166,99890.0,99889.0,0.0381401]
[1733631878292,0.01307166,99890.0,99889.0,0.035012]
[1733631878488,0.01307166,99890.0,99889.0,0.03814011]
[1733631880288,0.01307166,99890.0,99889.0,0.0431451]
[1733631885992,0.01307166,99890.0,99889.0,0.0081331]
[1733631885993,0.04808366,99890.0,99889.0,0.0081331]
[1733631886185,0.04808366,99890.0,99889.0,0.00312811]
[1733631886390,0.04808366,99890.0,99889.0,0.04314555]
[1733631887089,0.01307166,99890.0,99889.0,0.04314555]
[1733631887896,0.01307166,99890.0,99889.0,0.03814011]
[1733631888094,0.01307166,99890.0,99889.0,0.39894011]
[1733631888297,0.035003,99916.0,99906.0,0.035006]
[1733631888498,0.035003,99916.0,99915.0,0.035003]
[1733631889802,0.042003,99916.0,99915.0,0.035003]
[1733631890095,0.06181408,99916.0,99915.0,0.035003]
[1733631890297,0.06181408,99916.0,99915.0,0.0381306]
[1733631890494,0.06181408,99916.0,99915.0,0.035003]
[1733631891098,0.07081408,99916.0,99915.0,0.036003]
[1733631891295,0.07081408,99916.0,99915.0,0.03913061]
[1733631891689,0.07081408,99916.0,99915.0,0.036003]
[1733631891895,0.07081408,99916.0,99915.0,0.03913067]
[1733631893101,0.22013356,99916.0,99915.0,0.03913067]
[1733631893603,0.07081408,99916.0,99915.0,0.03913067]
[1733631894199,0.22016056,99916.0,99915.0,0.03913067]
[1733631895098,0.11945976,99916.0,99915.0,0.03913067]
[1733631895299,0.11945976,99916.0,99915.0,0.04413486]
[1733631895501,0.11945976,99916.0,99915.0,0.04100719]
[1733631895706,0.11945976,99916.0,99915.0,0.04413481]
[1733631897105,0.07081408,99916.0,99915.0,0.04413481]
[1733631897605,0.22024696,99916.0,99915.0,0.036003]
[1733631897813,0.22024696,99916.0,99915.0,0.04413479]
[1733631899011,0.22024696,99916.0,99915.0,0.04413477]
[1733631899207,0.07081408,99916.0,99915.0,0.00913177]
[1733631902709,0.22024696,99916.0,99915.0,0.00913177]
[1733631902906,0.07081408,99916.0,99915.0,0.0041276]
[1733631903100,0.22024696,99916.0,99915.0,0.0041276]
[1733631903298,0.22024696,99916.0,99915.0,0.00412791]
[1733631903507,0.07081408,99916.0,99915.0,0.00412791]
[1733631904598,0.07081408,99916.0,99915.0,0.001]
[1733631904803,0.07081408,99916.0,99915.0,0.00412788]
[1733631905103,0.22024696,99916.0,99915.0,0.00412788]
[1733631906316,0.1194634,99916.0,99915.0,0.00412788]
[1733631906907,0.25019701,99916.0,99915.0,0.03913088]
[1733631907113,0.11946071,99916.0,99915.0,0.03913088]
[1733631910117,0.016,99916.0,99915.0,0.04413487]
[1733631910614,0.14960921,99920.0,99915.0,0.04413487]
[1733631910615,0.08982773,99920.0,99919.0,0.035002]
[1733631910819,0.00011861,99920.0,99919.0,0.40393387]
[1733631911718,0.00911861,99920.0,99919.0,0.40493387]
[1733631912518,0.01511861,99920.0,99919.0,0.41574957]
[1733631912710,0.01511861,99920.0,99919.0,0.40593387]
[1733631915017,0.01511861,99920.0,99919.0,0.40280599]
[1733631915212,0.01511861,99920.0,99919.0,0.40593205]
[1733631918227,0.01511861,99920.0,99919.0,0.397802]
[1733631918419,0.01511861,99920.0,99919.0,0.4028051]
[1733631918728,0.01511861,99920.0,99919.0,0.40593204]
[1733631925622,0.01511861,99920.0,99919.0,0.40593198]
[1733631926427,0.01511861,99920.0,99919.0,0.40493198]
[1733631926428,0.01111861,99920.0,99919.0,0.40493198]
[1733631927127,0.00011861,99920.0,99919.0,0.40393198]
[1733631927329,0.00811861,99920.0,99919.0,0.40393198]
[1733631929127,0.00811861,99920.0,99919.0,0.58337021]
[1733631929329,0.04311961,99920.0,99919.0,0.40393198]
[1733631930124,0.04311961,99920.0,99919.0,0.39892891]
[1733631931334,0.04311961,99920.0,99919.0,0.40393235]
[1733631935727,0.04311961,99920.0,99919.0,0.395802]
[1733631935930,0.04311961,99920.0,99919.0,0.36893066]
[1733631936132,0.07501961,99920.0,99919.0,0.36893066]
[1733631936942,0.07501961,99920.0,99919.0,0.00312718]
[1733631937249,0.07501961,99920.0,99919.0,0.0081311]
[1733631938732,0.035004,99913.0,99912.0,0.01]
[1733631938933,0.12469293,99913.0,99912.0,0.01312746]
[1733631939130,0.12469293,99913.0,99912.0,0.01813139]
[1733631939434,0.12469405,99913.0,99912.0,0.01813139]
[1733631939632,0.035004,99913.0,99912.0,0.19756962]
[1733631939842,0.12571025,99913.0,99912.0,0.19756962]
[1733631940140,0.001,99913.0,99912.0,0.05313539]
[1733631940835,0.001,99913.0,99912.0,0.35212983]
[1733631941032,0.004,99913.0,99912.0,0.35212983]
[1733631941236,0.004,99913.0,99912.0,0.34399844]
[1733631941436,0.004,99913.0,99912.0,0.36216044]
[1733631942139,0.005,99913.0,99912.0,0.36216044]
[1733631942345,0.006,99913.0,99912.0,0.36216044]
[1733631942946,0.005,99913.0,99912.0,0.063166]
[1733631943250,0.006,99913.0,99912.0,0.063166]
[1733631943842,0.005,99913.0,99912.0,0.063166]
[1733631944150,0.006,99913.0,99912.0,0.063166]
[1733631944352,0.001,99913.0,99912.0,0.063166]
[1733631944547,0.003,99913.0,99912.0,0.063166]
[1733631944951,0.001,99913.0,99912.0,0.063166]
[1733631945147,0.003,99913.0,99912.0,0.063166]
[1733631945557,0.003,99913.0,99912.0,0.06406944]
[1733631945747,0.003,99913.0,99912.0,0.063166]
[1733631946643,0.003,99913.0,99912.0,0.07794588]
[1733631946850,0.003,99913.0,99912.0,0.25778219]
[1733631947447,0.003,99913.0,99912.0,0.07794588]
[1733631947652,0.003,99913.0,99912.0,0.25778387]
[1733631948452,0.1874946,99913.0,99912.0,0.01813054]
[1733631948644,0.1874946,99913.0,99912.0,0.01813155]
[1733631948951,0.08664843,99913.0,99912.0,0.01813155]
[1733631949646,0.08564843,99913.0,99912.0,0.01813155]
[1733631949846,0.08664843,99913.0,99912.0,0.01813155]
[1733631950157,0.035004,99912.0,99911.0,0.01]
[1733631950354,0.11414843,99912.0,99911.0,0.01]
[1733631951349,0.11614843,99912.0,99911.0,0.01]
[1733631951554,0.068504,99912.0,99911.0,0.01]
[1733631953158,0.067504,99912.0,99911.0,0.01]
[1733631953345,0.070504,99912.0,99911.0,0.01]
[1733631953951,0.076504,99912.0,99911.0,0.011]
[1733631959568,0.22589523,99912.0,99911.0,0.011]
[1733631960162,0.22589523,99912.0,99911.0,0.01600429]
[1733631961563,0.076504,99912.0,99911.0,0.01600429]
[1733631961865,0.12515041,99912.0,99911.0,0.01600429]
[1733631962066,0.12515066,99912.0,99911.0,0.01913198]
[1733631963358,0.12515066,99912.0,99911.0,0.01412769]
[1733631963664,0.09465066,99912.0,99911.0,0.01412769]
[1733631964469,0.09465066,99912.0,99911.0,0.011]
[1733631964673,0.09465066,99912.0,99911.0,0.01412779]
[1733631965761,0.09465066,99912.0,99911.0,0.05413601]
[1733631965762,0.05964666,99912.0,99911.0,0.05413601]
[1733631965978,0.011,99912.0,99911.0,0.08483601]
[1733631967177,0.011,99912.0,99911.0,0.32450044]
[1733631967872,0.011,99912.0,99911.0,0.08483601]
[1733631968175,0.011,99912.0,99911.0,0.0848353]
[1733631968362,0.011,99912.0,99911.0,0.32449973]
[1733631968563,0.011,99912.0,99911.0,0.0848353]
[1733631969370,0.011,99912.0,99911.0,0.32449973]
[1733631969575,0.011,99912.0,99911.0,0.0848353]
[1733631970469,0.011,99912.0,99911.0,0.32449973]
[1733631971269,0.011,99912.0,99911.0,0.32449975]
[1733631972673,0.011,99912.0,99911.0,0.08483532]
[1733631973075,0.011,99912.0,99911.0,0.32457752]
[1733631973974,0.011,99912.0,99911.0,0.32459885]
[1733631974577,0.011,99912.0,99911.0,0.31646753]
[1733631974783,0.011,99912.0,99911.0,0.32459859]
[1733631975770,0.011,99912.0,99911.0,0.32464259]
[1733631976375,0.011,99912.0,99911.0,0.08483506]
[1733631981466,0.011,99912.0,99911.0,0.076704]
[1733631981669,0.011,99912.0,99911.0,0.08483491]
[1733631981877,0.13043611,99912.0,99911.0,0.08483491]
[1733631983079,0.011,99912.0,99911.0,0.08483491]
[1733631985277,0.011,99912.0,99911.0,0.08483506]
[1733631985680,0.011,99912.0,99911.0,0.44563506]
[1733631987775,0.011,99912.0,99911.0,0.41493506]
[1733631988383,0.011,99912.0,99911.0,0.41493511]
[1733631988881,0.10064862,99912.0,99911.0,0.41493511]
[1733631989388,0.011,99912.0,99911.0,0.41493511]
[1733631992582,0.011,99912.0,99911.0,0.41583909]
[1733631992884,0.046004,99912.0,99911.0,0.41583909]
[1733631993477,0.046004,99912.0,99911.0,0.41493511]
[1733631994377,0.13565262,99912.0,99911.0,0.41493511]
[1733631994786,0.046004,99912.0,99911.0,0.41493511]
[1733631995489,0.046004,99912.0,99911.0,0.7113883]
[1733631995686,0.046004,99912.0,99911.0,0.71451565]
[1733631996884,0.046004,99912.0,99911.0,0.41493511]
[1733631998687,0.046004,99912.0,99911.0,0.406804]
[1733631998883,0.046004,99912.0,99911.0,0.41493511]
[1733632000082,0.09464593,99912.0,99911.0,0.59503204]
[1733632000684,0.09464593,99912.0,99911.0,0.59593705]
[1733632001088,0.09464593,99912.0,99911.0,0.41584012]
[1733632001690,0.09464593,99912.0,99911.0,0.41271284]
[1733632001892,0.09464593,99912.0,99911.0,0.41584028]
[1733632002278,0.09464593,99912.0,99911.0,0.40993144]
[1733632002588,0.09464593,99912.0,99911.0,0.02316373]
[1733632002889,0.09464593,99912.0,99911.0,0.01913134]
[1733632003192,0.22540038,99912.0,99911.0,0.01913134]
[1733632003393,0.09464593,99912.0,99911.0,0.01913134]
[1733632003987,0.046004,99912.0,99911.0,0.01913134]
[1733632004392,0.046004,99912.0,99911.0,0.19914434]
[1733632004595,0.046004,99912.0,99911.0,0.01913134]
[1733632005795,0.046004,99912.0,99911.0,0.011]
[1733632005796,0.05575778,99912.0,99911.0,0.011]
[1733632006094,0.05575778,99912.0,99911.0,0.01913198]
[1733632006290,0.05575778,99912.0,99911.0,0.011]
[1733632006596,0.05575778,99912.0,99911.0,0.01913199]
[1733632007393,0.05575778,99912.0,99911.0,0.19908727]
[1733632007997,0.05575778,99912.0,99911.0,0.01913199]
[1733632008390,0.05575778,99912.0,99911.0,0.19907271]
[1733632009393,0.05575778,99912.0,99911.0,0.19907274]
[1733632010699,0.05575778,99912.0,99911.0,0.01913202]
[1733632016012,0.05575778,99912.0,99911.0,0.0141277]
[1733632017497,0.05575778,99912.0,99902.0,0.01]
[1733632017498,0.035007,99903.0,99902.0,0.01]
[1733632017803,0.44446339,99903.0,99902.0,0.00312807]
[1733632018112,0.035011,99892.0,99891.0,0.01]
[1733632018408,0.035011,99892.0,99880.0,9.565e-05]
[1733632018409,0.44447301,99892.0,99880.0,9.565e-05]
[1733632018710,0.44447301,99892.0,99870.0,0.01]
[1733632018711,0.035018,99871.0,99870.0,0.01]
[1733632019004,0.04866827,99871.0,99861.0,0.035022]
[1733632019205,0.035017,99876.0,99862.0,0.00500647]
[1733632019206,0.15433564,99863.0,99862.0,0.00500647]
[1733632019409,0.11931464,99867.0,99861.0,0.035022]
[1733632019705,0.035022,99862.0,99861.0,0.035022]
[1733632019903,0.035022,99862.0,99861.0,0.0400286]
[1733632020809,0.036022,99862.0,99861.0,0.0460286]
[1733632021807,0.036022,99862.0,99861.0,0.05002849]
[1733632022001,0.036022,99862.0,99861.0,0.0500285]
[1733632022400,0.036022,99862.0,99861.0,0.045022]
[1733632022904,0.036022,99862.0,99861.0,0.05002847]
[1733632027904,0.001,99862.0,99861.0,0.05002847]
[1733632030308,0.001,99862.0,99861.0,0.05315734]
[1733632031806,0.001,99862.0,99861.0,0.05315694]
[1733632035316,0.001,99862.0,99861.0,0.045022]
[1733632035512,0.001,99862.0,99861.0,0.05315673]
[1733632039115,0.01,99871.0,99870.0,0.035019]
[1733632039315,0.01,99880.0,99879.0,0.035016]
[1733632039518,0.035012,99889.0,99884.0,0.035014]
[1733632039519,0.01,99885.0,99884.0,0.035014]
[1733632039721,0.09932515,99896.0,99884.0,0.035014]
[1733632039722,0.035013,99887.0,99886.0,0.035013]
[1733632039917,0.035013,99887.0,99886.0,0.04314702]
[1733632041627,0.005,99887.0,99886.0,0.04314702]
[1733632042117,0.005,99887.0,99886.0,0.04314643]
[1733632042520,0.007,99887.0,99886.0,0.04314643]
[1733632043232,0.042013,99887.0,99886.0,0.00813343]
[1733632043425,0.040013,99887.0,99886.0,0.00813343]
[1733632043621,0.041013,99887.0,99886.0,0.00813343]
[1733632043821,0.041013,99887.0,99886.0,0.00813373]
[1733632044127,0.041013,99887.0,99886.0,0.00312824]
[1733632044324,0.041013,99887.0,99886.0,0.00813379]
[1733632044628,0.037013,99887.0,99886.0,0.00813379]
[1733632044817,0.037013,99887.0,99886.0,0.00312824]
[1733632044818,0.13133815,99887.0,99886.0,0.00312824]
[1733632045026,0.042013,99887.0,99886.0,0.00312824]
[1733632045225,0.041013,99887.0,99876.0,0.035016]
[1733632045535,0.035016,99877.0,99876.0,0.035016]
[1733632045730,0.035016,99877.0,99876.0,0.04315067]
[1733632048735,0.036016,99877.0,99876.0,0.04315067]
[1733632051331,0.396816,99877.0,99876.0,0.00813467]
[1733632051528,0.54595931,99877.0,99876.0,0.00813467]
[1733632051730,0.44548387,99877.0,99876.0,0.00813467]
[1733632051928,0.44548387,99877.0,99876.0,0.00312873]
[1733632053437,0.45553945,99877.0,99876.0,0.00312873]
[1733632055539,0.45553945,99877.0,99876.0,0.00312909]
[1733632055736,0.45553945,99877.0,99862.0,0.01]
[1733632055930,0.45553945,99877.0,99863.0,0.00813566]
[1733632055931,0.11932754,99867.0,99863.0,0.00813566]
[1733632056129,0.11932754,99867.0,99864.0,0.00312909]
[1733632056437,0.03502,99866.0,99865.0,0.00813564]
[1733632058435,0.03502,99866.0,99865.0,0.01113564]
[1733632059133,0.03502,99866.0,99865.0,0.01513564]
[1733632062038,0.035018,99871.0,99865.0,0.37593564]
[1733632062241,0.035018,99871.0,99870.0,0.035019]
[1733632062540,0.035018,99871.0,99870.0,0.04315464]
[1733632062745,0.035017,99876.0,99875.0,0.035017]
[1733632063045,0.035017,99876.0,99875.0,0.04315264]
[1733632063436,0.45029384,99883.0,99875.0,0.00813564]
[1733632063640,0.045013,99887.0,99876.0,0.36893564]
[1733632063946,0.045013,99887.0,99877.0,0.24825586]
[1733632064245,0.045013,99887.0,99886.0,0.035013]
[1733632064444,0.035013,99887.0,99886.0,0.04314864]
[1733632064842,0.01982553,99888.0,99886.0,0.00813564]
[1733632065139,0.01,99896.0,99895.0,0.03501]
[1733632065342,0.12449705,99902.0,99901.0,0.035008]
[1733632065546,0.035008,99902.0,99901.0,0.035008]
[1733632065736,0.035006,99907.0,99905.0,0.035006]
[1733632065935,0.035006,99907.0,99906.0,0.04313847]
[1733632068045,0.035006,99907.0,99906.0,0.04413847]
[1733632068046,0.044006,99907.0,99906.0,0.04413847]
[1733632068342,0.044006,99907.0,99906.0,0.03913387]
[1733632068647,0.048006,99907.0,99906.0,0.03913387]
[1733632069039,0.048006,99907.0,99906.0,0.03913377]
[1733632069849,0.06795387,99907.0,99906.0,0.03913377]
[1733632070638,0.06795387,99907.0,99906.0,0.036006]
[1733632071053,0.06795387,99907.0,99906.0,0.03913384]
[1733632071343,0.06795387,99907.0,99906.0,0.036006]
[1733632072360,0.03294787,99907.0,99906.0,0.036006]
[1733632072646,0.03294787,99907.0,99906.0,0.0441381]
[1733632072647,0.013,99907.0,99906.0,0.0441381]
[1733632072946,0.015,99917.0,99906.0,0.0441381]
[1733632072947,0.10433727,99917.0,99915.0,0.035003]
[1733632073139,0.12944615,99920.0,99916.0,0.03442781]
[1733632073140,0.08933727,99919.0,99916.0,0.03442781]
[1733632073343,0.00011861,99920.0,99917.0,0.03492781]
[1733632073535,0.00011861,99920.0,99918.0,0.00312781]
[1733632073741,0.00011861,99920.0,99919.0,0.00312781]
[1733632074256,0.00011861,99920.0,99919.0,0.03812981]
[1733632074940,0.00011861,99920.0,99919.0,0.03912981]
[1733632074941,0.01411861,99920.0,99919.0,0.03912981]
[1733632075646,0.01411861,99920.0,99919.0,0.03912927]
[1733632079055,0.01411861,99920.0,99919.0,0.03912929]
[1733632080341,0.01411861,99920.0,99919.0,0.036002]
[1733632080749,0.04911961,99920.0,99919.0,0.036002]
[1733632081947,0.04911961,99920.0,99919.0,0.03912931]
[1733632083951,0.04911961,99920.0,99919.0,0.00412731]
[1733632085056,0.04911961,99920.0,99919.0,0.00412749]
[1733632085248,0.04911961,99920.0,99919.0,0.001]
[1733632085450,0.07941961,99920.0,99919.0,0.001]
[1733632089554,0.16875688,99920.0,99919.0,0.001]
[1733632090147,0.16873368,99920.0,99919.0,0.001]
[1733632090347,0.07941961,99920.0,99919.0,0.001]
[1733632090558,0.16878783,99920.0,99919.0,0.001]
[1733632091349,0.07941961,99920.0,99919.0,0.001]
[1733632092559,0.07941961,99920.0,99919.0,0.00412762]
[1733632094265,0.48886518,99920.0,99919.0,0.00412762]
[1733632094461,0.45856518,99920.0,99919.0,0.00412762]
[1733632094855,0.45856518,99920.0,99919.0,0.04413347]
[1733632094856,0.40991961,99920.0,99919.0,0.04413347]
[1733632095060,0.40991961,99920.0,99919.0,0.04100593]
[1733632095259,0.40991961,99920.0,99919.0,0.04413339]
[1733632095462,0.55921892,99920.0,99919.0,0.04413339]
[1733632096464,0.04911961,99920.0,99919.0,0.04413339]
[1733632097572,0.19841892,99920.0,99919.0,0.00913139]
[1733632098769,0.09776189,99920.0,99919.0,0.00913139]
[1733632099068,0.09676189,99920.0,99919.0,0.00913139]